bitfinex-derivatives/quotes_SOLF0:USTF0_20240911
["timestamp","ask_amount","ask_price","bid_price","bid_amount"]
[1726082644125,3.7917,131.85,131.82,3.7924]
[1726082645021,3.7919,131.84,131.82,3.7924]
[1726082645221,3.7919,131.84,131.81,19.1761558]
[1726082645822,3.7919,131.84,131.81,7.5361558]
[1726082646728,3.7917,131.85,131.82,3.7924]
[1726082647819,3.7917,131.85,131.83,3.7921]
[1726082648219,3.7917,131.85,131.82,3.7923]
[1726082648627,3.7917,131.85,131.82,7.56648243]
[1726082649041,3.7919,131.84,131.82,7.56648243]
[1726082650725,3.7925,131.82,131.8,1.3898]
[1726082650925,11.64,131.85,131.8,5.09827451]
[1726082651334,3.792,131.84,131.81,3.7926]
[1726082651626,11.64,131.85,131.81,3.7926]
[1726082651818,3.7924,131.82,131.8,5.1827]
[1726082652019,11.64,131.85,131.8,5.1827]
[1726082652425,3.792,131.84,131.81,3.7927]
[1726082652621,11.64,131.85,131.8,1.3898]
[1726082653231,11.64,131.85,131.78,1.3091]
[1726082653232,11.64,131.83,131.78,12.9491]
[1726082653437,11.64,131.83,131.69,7.5923]
[1726082653438,11.64,131.82,131.76,11.64]
[1726082653826,3.7929,131.81,131.78,3.7933]
[1726082654331,3.7932,131.8,131.74,2.7651]
[1726082654521,3.7932,131.8,131.75,11.64]
[1726082655728,3.7932,131.8,131.76,3.794]
[1726082656127,3.7934,131.79,131.76,3.794]
[1726082656729,2.6891,131.85,131.74,2.7651]
[1726082656730,11.64,131.8,131.74,2.7651]
[1726082657132,11.64,131.8,131.74,6.5597]
[1726082657340,3.7938,131.78,131.74,6.5597]
[1726082657631,11.64,131.8,131.74,6.5597]
[1726082657836,3.7939,131.77,131.74,6.5597]
[1726082659135,3.7942,131.76,131.73,16.821]
[1726082659340,11.64,131.78,131.73,16.821]
[1726082659831,3.794,131.77,131.73,16.821]
[1726082660237,3.794,131.77,131.73,5.181]
[1726082660933,11.64,131.78,131.73,5.181]
[1726082661532,3.794,131.77,131.74,3.7946]
[1726082664739,11.64,131.78,131.73,1.3861]
[1726082665141,3.794,131.77,131.74,3.7947]
[1726082667129,3.7943,131.76,131.72,15.52448873]
[1726082667935,3.7943,131.76,131.73,3.7949]
[1726082668738,15.434,131.77,131.74,3.7947]
[1726082668939,11.64,131.78,131.72,15.52448873]
[1726082669447,3.794,131.77,131.74,3.7946]
[1726082672341,15.4337,131.78,131.75,3.7944]
[1726082672545,3.7937,131.78,131.75,3.7944]
[1726082673447,3.7937,131.78,131.73,13.0588]
[1726082673448,15.4334,131.79,131.76,3.7941]
[1726082674146,3.7932,131.8,131.77,3.7938]
[1726082674542,3.7933,131.79,131.77,3.7938]
[1726082674741,15.4333,131.79,131.76,3.794]
[1726082674943,11.64,131.79,131.74,11.64]
[1726082675251,3.7939,131.77,131.74,3.7946]
[1726082675933,3.7939,131.77,131.67,7.5931]
[1726082675934,7.5842,131.84,131.63,7.5958]
[1726082676138,11.64,131.75,131.69,11.64]
[1726082676350,11.64,131.75,131.69,15.40385919]
[1726082676647,15.4345,131.75,131.69,15.40385919]
[1726082677238,3.7945,131.75,131.72,3.7951]
[1726082678236,11.64,131.77,131.71,3.7954]
[1726082678444,11.64,131.75,131.7,11.64]
[1726082678741,3.795,131.74,131.7,3.7956]
[1726082679449,3.795,131.74,131.71,3.7955]
[1726082679946,3.795,131.74,131.69,5.13105919]
[1726082680140,3.795,131.74,131.7,3.7956]
[1726082682748,3.795,131.74,131.71,3.7956]
[1726082684648,3.7953,131.73,131.7,3.7958]
[1726082688066,11.64,131.75,131.69,16.77105919]
[1726082688645,3.7948,131.74,131.71,3.7954]
[1726082689150,11.64,131.75,131.69,5.13105919]
[1726082689451,11.64,131.74,131.69,3.76385919]
[1726082690646,11.64,131.74,131.69,3.7959]
[1726082691749,3.7952,131.73,131.69,3.7959]
[1726082692446,3.7954,131.72,131.69,3.7959]
[1726082693551,3.7951,131.73,131.7,3.7959]
[1726082698960,3.7949,131.74,131.71,3.7955]
[1726082700258,3.7952,131.73,131.7,3.7958]
[1726082701766,3.7954,131.72,131.69,3.7961]
[1726082702069,11.64,131.73,131.68,6.57989073]
[1726082702367,3.7959,131.71,131.68,5.1114]
[1726082702552,11.64,131.73,131.68,1.3151]
[1726082702755,15.4358,131.71,131.68,1.3151]
[1726082703563,15.4358,131.71,131.68,5.1115]
[1726082703761,3.7959,131.7,131.66,11.64]
[1726082703962,11.64,131.71,131.66,11.64]
[1726082704163,11.64,131.71,131.64,5.15371762]
[1726082704360,3.796,131.7,131.65,11.64]
[1726082704559,3.796,131.7,131.66,3.73358757]
[1726082705159,15.4357,131.71,131.67,3.7966]
[1726082705562,11.64,131.73,131.66,15.37358757]
[1726082705769,3.7955,131.72,131.68,3.7963]
[1726082705963,11.64,131.73,131.66,15.37358757]
[1726082706866,3.7958,131.71,131.67,3.7965]
[1726082707463,3.7958,131.71,131.68,3.7964]
[1726082708069,3.7958,131.71,131.67,3.7966]
[1726082708261,3.7958,131.71,131.66,15.37358757]
[1726082708771,2.7664,131.78,131.7,11.64]
[1726082708960,11.64,131.77,131.7,11.64]
[1726082709165,11.64,131.75,131.7,11.64]
[1726082709370,3.7949,131.74,131.7,15.4357]
[1726082710069,3.7949,131.74,131.7,11.64]
[1726082710264,3.7951,131.73,131.7,11.64]
[1726082710466,3.7951,131.73,131.69,3.796]
[1726082710670,11.64,131.74,131.69,3.796]
[1726082710869,3.7957,131.71,131.68,11.64]
[1726082711070,11.64,131.71,131.67,1.4005]
[1726082712671,15.4358,131.71,131.67,5.1973]
[1726082714474,3.7959,131.7,131.67,3.7968]
[1726082715180,11.64,131.71,131.69,3.7961]
[1726082715479,11.64,131.73,131.67,11.64]
[1726082715682,3.7956,131.71,131.67,11.64]
[1726082716782,3.7956,131.71,131.68,3.7963]
[1726082719269,3.7954,131.72,131.68,3.7963]
[1726082719581,11.64,131.73,131.66,3.73358757]
[1726082719781,11.64,131.73,131.66,11.64]
[1726082719977,3.7958,131.71,131.67,3.73672212]
[1726082720178,3.7958,131.71,131.68,3.7963]
[1726082720378,3.7954,131.72,131.67,3.73672212]
[1726082720779,3.7954,131.72,131.69,3.796]
[1726082721478,15.4351,131.73,131.67,15.37672212]
[1726082721974,3.7951,131.73,131.7,3.7956]
[1726082722178,3.7951,131.73,131.68,12.971]
[1726082722578,3.7951,131.73,131.7,3.7957]
[1726082724276,3.7948,131.74,131.71,3.7956]
[1726082725976,3.7945,131.75,131.72,3.7953]
[1726082726180,2.7664,131.78,131.71,11.64]
[1726082726479,11.64,131.77,131.71,11.64]
[1726082727992,3.7942,131.76,131.73,3.7948]
[1726082729883,11.64,131.77,131.71,11.64]
[1726082731785,15.4339,131.77,131.72,11.64]
[1726082732577,15.4339,131.77,131.73,3.7949]
[1726082733691,15.4339,131.77,131.74,3.7947]
[1726082733888,3.7937,131.78,131.74,3.7947]
[1726082734080,3.7937,131.78,131.74,15.4347]
[1726082734485,3.794,131.77,131.74,15.4347]
[1726082734888,2.771,131.85,131.74,11.64]
[1726082735087,11.64,131.8,131.75,11.64]
[1726082735482,11.64,131.8,131.69,6.72456733]
[1726082735682,11.64,131.8,131.75,3.7944]
[1726082735890,11.64,131.8,131.74,11.64]
[1726082736586,3.7936,131.78,131.74,15.4346]
[1726082736780,3.7936,131.78,131.74,11.64]
[1726082736980,15.4334,131.79,131.75,3.7944]
[1726082737593,15.4334,131.79,131.74,11.64]
[1726082738087,15.4334,131.79,131.75,3.7944]
[1726082738393,3.7934,131.79,131.75,3.7944]
[1726082739485,3.7936,131.78,131.75,3.7944]
[1726082739693,3.7936,131.78,131.74,15.4346]
[1726082739889,11.64,131.77,131.69,6.72456733]
[1726082740089,2.771,131.85,131.69,6.72456733]
[1726082740090,1.4091,131.79,131.73,11.64]
[1726082740294,1.4091,131.79,131.74,11.64]
[1726082740587,1.4091,131.79,131.73,11.64]
[1726082740588,13.0491,131.79,131.73,11.64]
[1726082740984,13.0491,131.79,131.74,3.7946]
[1726082741185,3.7938,131.78,131.74,3.7946]
[1726082741594,13.0491,131.79,131.74,3.7946]
[1726082741790,11.64,131.77,131.73,3.795]
[1726082741991,11.64,131.77,131.71,11.64]
[1726082742386,3.7944,131.76,131.73,3.795]
[1726082742589,11.64,131.77,131.73,3.795]
[1726082743193,13.0195,131.78,131.71,11.64]
[1726082743400,3.7943,131.76,131.71,11.64]
[1726082744497,13.0195,131.78,131.73,3.795]
[1726082744498,3.794,131.77,131.73,3.795]
[1726082745295,16.8132,131.78,131.74,3.7947]
[1726082745491,5.1732,131.78,131.74,3.7947]
[1726082746095,1.3795,131.78,131.75,3.7943]
[1726082746292,16.8425,131.79,131.75,3.7943]
[1726082746498,13.0491,131.79,131.74,11.64]
[1726082746801,11.64,131.78,131.69,6.72456733]
[1726082746997,11.64,131.78,131.72,11.64]
[1726082747496,15.4337,131.78,131.75,3.7944]
[1726082748105,15.4337,131.78,131.74,3.7947]
[1726082748303,3.7939,131.77,131.74,3.7947]
[1726082749298,3.7937,131.78,131.74,11.64]
[1726082749593,11.64,131.8,131.74,11.64]
[1726082749791,3.7935,131.79,131.74,11.64]
[1726082750401,3.7935,131.79,131.75,3.7943]
[1726082750997,3.7936,131.78,131.75,3.7943]
[1726082754011,3.7939,131.77,131.74,15.4347]
[1726082754309,3.7937,131.78,131.74,15.4347]
[1726082755905,3.7937,131.78,131.75,3.7944]
[1726082756407,3.7934,131.79,131.76,3.7939]
[1726082756704,1.3958,131.84,131.76,11.64]
[1726082756901,3.7932,131.8,131.76,11.64]
[1726082757699,3.7933,131.79,131.77,3.7937]
[1726082757898,11.64,131.81,131.77,3.7937]
[1726082758405,3.7932,131.8,131.77,3.7937]
[1726082760213,11.64,131.81,131.78,3.7935]
[1726082761810,3.793,131.8,131.78,3.7935]
[1726082762215,11.64,131.81,131.78,3.7935]
[1726082762513,15.433,131.81,131.78,3.7935]
[1726082762915,3.793,131.8,131.77,3.7937]
[1726082763215,11.64,131.81,131.69,14.31696733]
[1726082763410,11.64,131.8,131.73,11.64]
[1726082764108,3.7937,131.78,131.75,3.7943]
[1726082764915,11.64,131.8,131.75,3.7943]
[1726082765115,11.64,131.79,131.73,11.64]
[1726082765316,3.794,131.77,131.73,11.64]
[1726082765614,11.64,131.79,131.73,15.4348]
[1726082765806,11.64,131.77,131.72,11.64]
[1726082766205,3.7942,131.76,131.72,15.4351]
[1726082767306,3.7945,131.75,131.72,15.4351]
[1726082767612,11.64,131.76,131.69,18.36456733]
[1726082768012,11.64,131.75,131.7,3.7957]
[1726082768517,11.64,131.75,131.69,18.36456733]
[1726082768913,11.64,131.75,131.69,11.64]
[1726082769214,11.64,131.73,131.68,1.331]
[1726082769620,3.7953,131.72,131.69,3.796]
[1726082769813,11.64,131.73,131.68,1.331]
[1726082770125,15.4355,131.72,131.68,5.1274]
[1726082770314,15.4355,131.72,131.68,1.331]
[1726082771418,15.4352,131.73,131.69,3.796]
[1726082772124,6.6346538,131.78,131.68,12.971]
[1726082772125,11.64,131.76,131.7,11.64]
[1726082772316,11.64,131.77,131.71,11.64]
[1726082772521,3.7942,131.76,131.72,3.7951]
[1726082772815,2.7968,131.78,131.73,11.64]
[1726082773021,2.7968,131.78,131.74,3.7946]
[1726082773417,11.64,131.8,131.74,11.64]
[1726082773619,11.64,131.8,131.76,3.794]
[1726082773918,11.64,131.8,131.74,13.0286]
[1726082774113,3.7935,131.79,131.75,3.7942]
[1726082774312,3.7935,131.79,131.74,13.0286]
[1726082774623,3.7935,131.79,131.76,3.7941]
[1726082774821,3.7935,131.79,131.74,13.0286]
[1726082775218,3.7935,131.79,131.75,3.7942]
[1726082775420,3.7935,131.79,131.74,13.0286]
[1726082777025,3.7935,131.79,131.76,3.7941]
[1726082778121,3.7935,131.79,131.75,3.7943]
[1726082778722,3.7935,131.79,131.74,13.0286]
[1726082779229,3.7935,131.79,131.75,3.7943]
[1726082780529,11.64,131.8,131.74,16.8232]
[1726082781027,11.64,131.8,131.74,13.0286]
[1726082781331,3.7934,131.79,131.75,3.7942]
[1726082781518,3.7934,131.79,131.74,13.0286]
[1726082782023,3.7934,131.79,131.76,3.794]
[1726082782627,11.64,131.8,131.74,13.0286]
[1726082783733,3.7936,131.79,131.74,13.0286]
[1726082784729,3.7936,131.79,131.76,3.7941]
[1726082784932,3.7931,131.8,131.76,11.64]
[1726082785525,11.64,131.81,131.76,11.64]
[1726082786127,15.4329,131.81,131.78,3.7935]
[1726082786627,3.793,131.8,131.78,3.7935]
[1726082787331,3.793,131.8,131.77,3.7937]
[1726082789025,3.7933,131.79,131.76,15.4342]
[1726082789426,11.64,131.81,131.76,15.4342]
[1726082789735,11.64,131.77,131.67,171.20555168]
[1726082789925,11.64,131.76,131.7,11.64]
[1726082790123,11.64,131.76,131.7,15.4358]
[1726082790331,11.64,131.74,131.69,11.64]
[1726082790539,49.3828826,131.83,131.68,2.7637]
[1726082790540,3.7955,131.72,131.68,2.7637]
[1726082790830,3.7955,131.72,131.68,1.3914]
[1726082791226,3.7955,131.72,131.68,5.1876]
[1726082791427,3.78756959,131.76,131.58,1.3723]
[1726082791731,11.64,131.7,131.64,11.64]
[1726082791923,15.4359,131.7,131.64,15.38166196]
[1726082792123,11.64,131.72,131.66,11.64]
[1726082792320,11.64,131.72,131.68,3.7963]
[1726082793038,3.7952,131.73,131.68,3.7963]
[1726082793836,15.4348,131.74,131.69,15.4362]
[1726082794827,3.7953,131.73,131.69,11.64]
[1726082795137,3.7953,131.73,131.65,4.0376]
[1726082795138,2.6969,131.77,131.7,11.64]
[1726082795340,11.64,131.76,131.7,11.64]
[1726082795538,2.6969,131.77,131.65,4.0376]
[1726082795539,11.64,131.73,131.67,11.64]
[1726082796034,15.4352,131.73,131.68,3.7963]
[1726082796635,15.4352,131.73,131.69,3.7961]
[1726082797240,11.64,131.73,131.67,11.64]
[1726082797431,11.64,131.75,131.69,11.64]
[1726082797739,3.7948,131.74,131.7,15.4357]
[1726082797929,11.64,131.76,131.7,11.64]
[1726082798328,3.7947,131.75,131.71,3.7955]
[1726082798538,11.64,131.76,131.7,11.64]
[1726082799525,3.7947,131.74,131.7,11.64]
[1726082800538,3.7947,131.74,131.7,15.4358]
[1726082800934,15.4347,131.74,131.7,3.7958]
[1726082801536,11.64,131.74,131.69,11.64]
[1726082802442,15.4348,131.74,131.7,3.7958]
[1726082802941,11.64,131.74,131.7,3.7958]
[1726082803238,3.7951,131.73,131.7,3.7958]
[1726082803441,11.64,131.76,131.71,3.7955]
[1726082803642,11.64,131.76,131.7,11.64]
[1726082803945,3.82377173,131.86,131.71,1.3099]
[1726082803946,17.36221394,131.83,131.71,1.3099]
[1726082804144,3.7935,131.79,131.74,11.64]
[1726082804444,11.64,131.8,131.75,3.7943]
[1726082804645,11.64,131.8,131.74,11.64]
[1726082805240,3.7939,131.78,131.74,11.64]
[1726082805552,11.64,131.8,131.74,11.64]
[1726082805844,3.7936,131.79,131.74,11.64]
[1726082806040,11.64,131.8,131.75,3.7943]
[1726082806740,3.7938,131.78,131.75,3.7943]
[1726082812142,3.7934,131.79,131.76,3.7941]
[1726082812448,11.64,131.8,131.76,3.7941]
[1726082813346,3.7934,131.79,131.76,15.4341]
[1726082813545,11.64,131.81,131.76,15.4341]
[1726082813750,11.64,131.8,131.74,11.64]
[1726082813950,3.7937,131.78,131.74,11.64]
[1726082814449,3.7937,131.78,131.75,3.7943]
[1726082814945,3.7937,131.78,131.76,3.7941]
[1726082816948,3.7939,131.77,131.74,11.64]
[1726082817746,3.7939,131.77,131.74,15.4346]
[1726082818050,3.7939,131.77,131.74,3.7946]
[1726082821549,3.7942,131.76,131.73,15.4349]
[1726082822645,3.7942,131.76,131.74,3.7947]
[1726082823355,3.794,131.77,131.74,3.7947]
[1726082827758,3.7942,131.76,131.73,15.4349]
[1726082828148,11.64,131.79,131.73,15.4349]
[1726082829460,3.7943,131.76,131.73,15.4349]
[1726082830761,11.64,131.79,131.73,11.64]
[1726082831061,3.7935,131.79,131.76,15.434]
[1726082831256,11.64,131.81,131.76,11.64]
[1726082831457,3.7931,131.8,131.77,15.4337]
[1726082832258,12.9549,131.83,131.77,11.64]
[1726082832756,12.9549,131.83,131.77,15.4337]
[1726082833169,3.793,131.8,131.77,15.4337]
[1726082833458,12.9549,131.83,131.78,3.7934]
[1726082833663,3.7926,131.82,131.78,15.4334]
[1726082833863,3.7926,131.82,131.79,11.64]
[1726082834759,3.7926,131.82,131.79,15.4333]
[1726082835565,3.7922,131.83,131.79,15.4333]
[1726082835761,11.64,131.87,131.8,11.64]
[1726082836166,11.64,131.87,131.8,13.0458]
[1726082836660,3.792,131.84,131.81,3.7927]
[1726082836969,11.64,131.87,131.8,13.0458]
[1726082837461,3.7918,131.85,131.81,3.7925]
[1726082839170,3.7917,131.85,131.82,15.4322]
[1726082841263,3.7921,131.83,131.82,11.64]
[1726082841468,11.64,131.87,131.82,11.64]
[1726082842064,3.7918,131.85,131.82,11.64]
[1726082843273,3.7918,131.85,131.82,15.4324]
[1726082843966,3.7915,131.86,131.82,11.64]
[1726082844164,3.7915,131.86,131.83,11.64]
[1726082844367,1.3862,131.89,131.84,11.64]
[1726082844672,3.7911,131.87,131.84,15.4317]
[1726082846064,191.9172,131.9,131.84,15.4317]
[1726082846065,3.7909,131.88,131.85,3.7915]
[1726082846369,180.2772,131.9,131.86,11.64]
[1726082846566,184.0675,131.9,131.87,15.4308]
[1726082850572,3.7904,131.89,131.87,11.64]
[1726082851864,3.7907,131.88,131.87,11.64]
[1726082853171,184.0675,131.9,131.87,15.4309]
[1726082853770,3.7904,131.89,131.87,11.64]
[1726082854277,180.2772,131.9,131.87,11.64]
[1726082854476,3.7904,131.89,131.87,11.64]
[1726082856374,191.9172,131.9,131.8,4.1808]
[1726082856572,191.9172,131.9,131.85,11.64]
[1726082856985,3.7912,131.87,131.85,11.64]
[1726082857189,191.9172,131.9,131.8,4.1808]
[1726082857373,191.9172,131.9,131.84,11.64]
[1726082857568,191.9172,131.9,131.85,11.64]
[1726082858278,3.7911,131.87,131.85,11.64]
[1726082860184,3.7913,131.86,131.85,11.64]
[1726082861180,3.7913,131.86,131.84,11.64]
[1726082861781,3.7916,131.85,131.84,11.64]
[1726082862882,3.7914,131.86,131.84,11.64]
[1726082863377,3.7916,131.85,131.84,11.64]
[1726082863771,11.64,131.89,131.84,11.64]
[1726082864078,3.7915,131.86,131.84,11.64]
[1726082864273,11.64,131.89,131.84,11.64]
[1726082864482,11.64,131.89,131.83,11.64]
[1726082864784,13.0082,131.89,131.83,11.64]
[1726082865377,3.7917,131.85,131.83,11.64]
[1726082865781,13.0082,131.89,131.83,11.64]
[1726082865981,3.7919,131.84,131.83,11.64]
[1726082866575,3.7919,131.84,131.81,3.7926]
[1726082866884,3.7919,131.84,131.81,15.4326]
[1726082870187,3.7917,131.85,131.82,3.7924]
[1726082870386,3.7917,131.85,131.83,11.64]
[1726082870987,3.7914,131.86,131.83,15.4321]
[1726082871889,3.7916,131.85,131.83,11.64]
[1726082872390,3.7917,131.85,131.83,11.64]
[1726082872891,13.0082,131.89,131.83,15.432]
[1726082873079,3.7914,131.86,131.83,15.432]
[1726082873885,3.7917,131.85,131.83,11.64]
[1726082876387,3.7917,131.85,131.83,15.4321]
[1726082876993,3.7914,131.86,131.83,15.432]
[1726082877198,180.2772,131.9,131.84,11.64]
[1726082877395,180.2772,131.9,131.85,11.64]
[1726082878207,3.7908,131.88,131.85,11.64]
[1726082878596,3.7908,131.88,131.87,11.64]
[1726082878801,180.2772,131.9,131.87,11.64]
[1726082879000,180.2772,131.9,131.85,11.64]
[1726082879301,3.7909,131.88,131.85,15.4314]
[1726082881603,180.2772,131.9,131.84,3.7917]
[1726082881804,191.9172,131.9,131.84,15.4317]
[1726082882108,3.7912,131.87,131.84,15.4317]
[1726082884313,3.7906,131.89,131.84,11.64]
[1726082884508,180.2772,131.9,131.85,11.64]
[1726082884903,3.7909,131.88,131.85,15.4314]
[1726082885608,3.791,131.87,131.85,11.64]
[1726082885813,180.2772,131.9,131.85,11.64]
[1726082886204,3.7909,131.88,131.85,11.64]
[1726082886410,3.7909,131.88,131.85,15.4314]
[1726082889013,3.7909,131.88,131.86,3.7912]
[1726082889509,180.2772,131.9,131.85,11.64]
[1726082889715,180.2772,131.9,131.88,11.64]
[1726082891510,184.0673,131.9,131.87,3.7908]
[1726082891713,184.0673,131.9,131.87,15.4308]
[1726082892308,3.7905,131.89,131.87,11.64]
[1726082892503,3.7905,131.89,131.86,5.1577]
[1726082892909,3.7905,131.89,131.86,1.3665]
[1726082893419,180.2772,131.9,131.86,1.3665]
[1726082893420,3.7908,131.88,131.86,1.3665]
[1726082893618,180.2772,131.9,131.84,15.4318]
[1726082893619,191.9172,131.9,131.84,15.4318]
[1726082894305,3.791,131.88,131.84,15.4318]
[1726082894816,3.791,131.87,131.84,15.4318]
[1726082895916,11.64,131.88,131.81,1.3541]
[1726082896114,11.64,131.88,131.83,11.64]
[1726082896612,3.7913,131.86,131.83,15.4319]
[1726082896813,191.9172,131.9,131.84,11.64]
[1726082897119,3.7909,131.88,131.85,3.7914]
[1726082897313,191.9172,131.9,131.85,11.64]
[1726082897519,191.9172,131.9,131.81,1.3541]
[1726082897520,180.2772,131.9,131.87,11.64]
[1726082898216,180.2772,131.9,131.88,11.64]
[1726082898515,180.2772,131.9,131.88,15.4306]
[1726082898719,180.2772,131.9,131.88,11.64]
[1726082898922,180.2772,131.9,131.89,11.64]
[1726082900806,180.2772,131.9,131.89,15.4304]
[1726082905313,180.2772,131.9,131.89,11.64]
[1726082906120,180.2772,131.9,131.89,15.4304]
[1726082919425,180.2772,131.9,131.89,11.64]
[1726082919629,180.2772,131.9,131.88,11.64]
[1726082920130,184.0675,131.9,131.88,15.4307]
[1726082920530,180.2772,131.9,131.88,15.4307]
[1726082920730,180.2772,131.9,131.89,15.4304]
[1726082926830,180.2772,131.9,131.88,11.64]
[1726082927435,180.2772,131.9,131.88,15.4305]
[1726082928041,180.2772,131.9,131.89,3.7904]
[1726082928841,180.2772,131.9,131.88,15.4306]
[1726082929041,180.2772,131.9,131.89,11.64]
[1726082929435,180.2772,131.9,131.89,15.4304]
[1726082935251,101.96833705,131.9,131.89,19.20674711]
[1726082935745,57.54353705,131.9,131.89,19.20674711]
[1726082935948,55.36203705,131.9,131.89,19.20674711]
[1726082937841,3.7885,131.96,131.93,15.4291]
[1726082938047,11.64,131.98,131.93,15.4291]
[1726082938247,11.64,131.98,131.91,11.64]
[1726082938446,11.64,131.97,131.92,3.7894]
[1726082938642,3.789,131.94,131.92,3.7894]
[1726082939043,11.64,131.97,131.92,3.7894]
[1726082939949,3.789,131.95,131.92,3.7894]
[1726082940748,3.789,131.94,131.92,3.7894]
[1726082942941,1.3401,132.0,131.93,11.64]
[1726082943148,1.3401,132.0,131.9,3.7197895]
[1726082943452,1.3401,132.0,131.95,11.64]
[1726082943749,3.7877,131.99,131.96,3.7884]
[1726082944238,1.3401,132.0,131.94,11.64]
[1726082944239,12.9801,132.0,131.94,11.64]
[1726082944443,1.4474,131.98,131.94,11.64]
[1726082944643,3.7882,131.97,131.94,15.4288]
[1726082945054,1.4474,131.98,131.94,11.64]
[1726082945646,1.4474,131.98,131.95,3.7884]
[1726082945851,1.4474,131.98,131.87,5.13553469]
[1726082946057,11.64,131.94,131.87,5.13553469]
[1726082946350,1.3401,132.0,131.91,11.64]
[1726082946656,1.3604,131.97,131.92,11.64]
[1726082947340,5.1487,131.97,131.93,3.7891]
[1726082947542,1.3604,131.97,131.91,11.64]
[1726082947847,11.64,131.96,131.91,11.64]
[1726082949050,11.64,131.94,131.87,11.64]
[1726082949260,1.4046,131.93,131.87,11.64]
[1726082949446,1.4046,131.93,131.89,3.7904]
[1726082949648,1.4046,131.93,131.89,11.64]
[1726082950747,1.4046,131.93,131.88,11.64]
[1726082951151,1.4046,131.93,131.91,3.7897]
[1726082951355,5.1977,131.95,131.9,11.64]
[1726082951948,1.4089,131.95,131.92,3.7894]
[1726082952945,1.4089,131.95,131.9,11.64]
[1726082953350,5.1976,131.95,131.92,3.7894]
[1726082953551,1.3604,131.97,131.94,11.64]
[1726082954057,5.1488,131.97,131.93,11.64]
[1726082954653,3.7885,131.96,131.93,15.4293]
[1726082954854,1.3604,131.97,131.93,15.4293]
[1726082955446,5.1487,131.97,131.93,15.4293]
[1726082956053,1.3604,131.97,131.92,11.64]
[1726082956452,3.7885,131.96,131.92,11.64]
[1726082956652,3.7885,131.96,131.93,3.7891]
[1726082957259,5.1486,131.97,131.94,3.789]
[1726082958052,3.7885,131.96,131.93,15.4291]
[1726082959552,1.3604,131.97,131.93,11.64]
[1726082960960,1.3604,131.97,131.94,11.64]
[1726082961560,11.64,132.01,131.95,11.64]
[1726082961858,13.0189,132.01,131.95,11.64]
[1726082962658,11.64,132.0,131.95,11.64]
[1726082962855,11.64,132.0,131.95,15.4285]
[1726082963449,3.7877,131.99,131.95,15.4285]
[1726082963654,11.64,132.0,131.95,15.4285]
[1726082964850,3.7879,131.98,131.95,15.4285]
[1726082966065,3.7876,131.99,131.95,11.64]
[1726082966558,3.7876,131.99,131.96,3.7884]
[1726082966865,3.7879,131.98,131.95,11.64]
[1726082967162,3.7879,131.98,131.95,15.4285]